{"text_format":"1","workbook":"xlsx","n_sheets":3,"sheets":["Перевозчики","Водители","Машины"],"not_rendered":{"charts":0,"images":0,"macros":1,"external_links":0,"defined_names":0,"comments":0,"pivot_tables":0},"unopened":[],"bounds":{"document_bytes":16777216,"sheet_cells":100000,"rows_first":2000,"rows_last":500,"rows_between":2000,"halvings":0,"cell_chars":16384,"cell_head_chars":4096},"cells_cut":0,"cells_raw":0,"read":"whole","date_system":"1900"}

{"sheet":"Перевозчики","index":0,"n_rows":13,"n_cols":13,"rows_kept":13,"cut":false,"hidden":false,"merged":[]}
[1,2,3,4,5,6,7,8,9,10,11,12,13]
["Наименование","Название","ИНН","Арес","р/сч","Банк","БИК","к/сч","Статус","телефон","Прочее","город","Для печати"]
["ВиваТранс","ООО \"ВИВА ТРАНС\"","3906090680","236029, г.Калининград, ул.Арсенальная, д.77","40702810707160000258","САНКТ-ПЕТЕРБУРГСКИЙ ФИЛИАЛ № 2 ПАО \"БИНБАНК\" Г. САНКТ-ПЕТЕРБУРГ","044030897","30101810040300000897","нет НДС",null,"тент 2 шт","Калининград",{"$f":"CONCATENATE(B3,\", ИНН \",C3, \", адрес: \",D3, \", р/сч \",E3,\" в \",F3,\", БИК \",G3,\", к/сч \",H3)","v":"ООО \"ВИВА ТРАНС\", ИНН 3906090680, адрес: 236029, г.Калининград, ул.Арсенальная, д.77, р/сч 40702810707160000258 в САНКТ-ПЕТЕРБУРГСКИЙ ФИЛИАЛ № 2 ПАО \"БИНБАНК\" Г. САНКТ-ПЕТЕРБУРГ, БИК 044030897, к/сч 30101810040300000897"}]
["Монополия-Инвест","ООО \"МОНОПОЛИЯ-ИНВЕСТ\"","5310020687","173525, Новгородская обл, Новгородский р-н, Чечулино д, Воцкая, дом № 21, кв.12","40702810632340000526","Филиал \"Санкт-Петербургский\" АО \"АЛЬФА-БАНК\" Санкт-Петербург","044030786","30101810600000000786","НДС",null,"диспетчер","СПб","ООО \"МОНОПОЛИЯ-ИНВЕСТ\", ИНН 5310020687, адрес: 173525, Новгородская обл, Новгородский р-н, Чечулино д, Воцкая, дом № 21, кв.12, р/сч 40702810632340000526 в Филиал \"Санкт-Петербургский\" АО \"АЛЬФА-БАНК\" Санкт-Петербург, БИК 044030786, к/сч 30101810600000000786"]
["Панов В.М. ИП","ИП ПАНОВ В.М.","531300052935","174510, Новгородская область, г. Пестово, ул. Профсоюзов, д.20"," \n40702810408120000253","НОВГОРОДСКИЙ РФ АО \"РОССЕЛЬХОЗБАНК\" Г. ВЕЛИКИЙ НОВГОРОД","044959722\n","30101810500000000722","нет НДС",null,"шаланда 2 шт","В.Новгород","ИП ПАНОВ В.М., ИНН 531300052935, адрес: 174510, Новгородская область, г. Пестово, ул. Профсоюзов, д.20, р/сч  \n40702810408120000253 в НОВГОРОДСКИЙ РФ АО \"РОССЕЛЬХОЗБАНК\" Г. ВЕЛИКИЙ НОВГОРОД, БИК 044959722\n, к/сч 30101810500000000722"]
["СБ+(Челябинск)","ООО \"СТРЙБИЗНЕС+\"","7460020295","454045, Челябинская область, г. Челябинск, ул. Маслобазовая, д.5, комната 3, офис 1.","40802810408070000041","НОВГОРОДСКИЙ РФ АО \"РОССЕЛЬХОЗБАНК\" Г. ВЕЛИКИЙ НОВГОРОД","044959722\n","30101810500000000722","нет НДС",null,"тент 1 шт","В.Новгород","ООО \"СТРЙБИЗНЕС+\", ИНН 7460020295, адрес: 454045, Челябинская область, г. Челябинск, ул. Маслобазовая, д.5, комната 3, офис 1., р/сч 40802810408070000041 в НОВГОРОДСКИЙ РФ АО \"РОССЕЛЬХОЗБАНК\" Г. ВЕЛИКИЙ НОВГОРОД, БИК 044959722\n, к/сч 30101810500000000722"]
["Серегин С.С. ИП","ИП СЕРЕГИН С.С.","502600555890","140082, МО, г. Лыткарино, ул. Колхозная, д. 94а, кв. 22","40702810072000009259","ЧЕЛЯБИНСКОЕ ОТДЕЛЕНИЕ N8597 ПАО СБЕРБАНК Г. ЧЕЛЯБИНСК ","047501602","30101810700000000602\n","НДС",null,"производитель","Челябинск","ИП СЕРЕГИН С.С., ИНН 502600555890, адрес: 140082, МО, г. Лыткарино, ул. Колхозная, д. 94а, кв. 22, р/сч 40702810072000009259 в ЧЕЛЯБИНСКОЕ ОТДЕЛЕНИЕ N8597 ПАО СБЕРБАНК Г. ЧЕЛЯБИНСК , БИК 047501602, к/сч 30101810700000000602\n"]
["ТК СПбЪ(ТракСтрой)","ООО \"ТК \"ПЕТЕРБУРГЪ\"","4703148520","188689, Ленинградская обл, Всеволожский р-н, д.Кудрово, пр-кт.Европейский, д.3, кв.72","40802810140240000847","ПАО СБЕРБАНК Г. МОСКВА","044525225","30101810400000000225","нет НДС",null,"шаланды 3 шт","Москва","ООО \"ТК \"ПЕТЕРБУРГЪ\", ИНН 4703148520, адрес: 188689, Ленинградская обл, Всеволожский р-н, д.Кудрово, пр-кт.Европейский, д.3, кв.72, р/сч 40802810140240000847 в ПАО СБЕРБАНК Г. МОСКВА, БИК 044525225, к/сч 30101810400000000225"]
["ТСС(Самара)","ООО \"ТРАНССЕРВИССТРОЙ\"","6319214960","443124, Самарская обл, г.Самара, ул. Шестая Просека, д.155, кв. 211.","40702810190700001154","ПАО «БАНК «САНКТ‐ПЕТЕРБУРГ» САНКТ-ПЕТЕРБУРГ","044030790","30101810900000000790","НДС",null,"шаланды 5 шт / юмба 1 шт","СПб","ООО \"ТРАНССЕРВИССТРОЙ\", ИНН 6319214960, адрес: 443124, Самарская обл, г.Самара, ул. Шестая Просека, д.155, кв. 211., р/сч 40702810190700001154 в ПАО «БАНК «САНКТ‐ПЕТЕРБУРГ» САНКТ-ПЕТЕРБУРГ, БИК 044030790, к/сч 30101810900000000790"]
["Феникс ","ООО \"ФЕНИКС\"","7802531721"," 194156, Санкт-Петербург г, Светлановский пр-кт, дом № 2, оф.7","40702810000300000600","ПАО \"АК БАРС\" БАНК Г.КАЗАНЬ","049205805","30101810000000000805","НДС",null,"шаланда 2 шт","Самара","ООО \"ФЕНИКС\", ИНН 7802531721, адрес:  194156, Санкт-Петербург г, Светлановский пр-кт, дом № 2, оф.7, р/сч 40702810000300000600 в ПАО \"АК БАРС\" БАНК Г.КАЗАНЬ, БИК 049205805, к/сч 30101810000000000805"]
["Фортуна","ООО \"ФОРТУНА\"","3664130073","394006, Российская Федерация, Воронежская область, г.Воронеж, ул.Краснознаменная, д.27, помещение IV.","40702810432260000835","Филиал \"Санкт-Петербургский\" АО \"АЛЬФА-БАНК\" Санкт-Петербург","044030786","30101810600000000786","НДС",null,"шаланда 2 шт","СПб","ООО \"ФОРТУНА\", ИНН 3664130073, адрес: 394006, Российская Федерация, Воронежская область, г.Воронеж, ул.Краснознаменная, д.27, помещение IV., р/сч 40702810432260000835 в Филиал \"Санкт-Петербургский\" АО \"АЛЬФА-БАНК\" Санкт-Петербург, БИК 044030786, к/сч 30101810600000000786"]
["Хорошильцев В.И.","ИП ХОРОШИЛЬЦЕВ В.И.","694300834696","172067, Россия Тверская обл.,Торжокский р-н, Село Грузины ","40702810124210000011","ФИЛИАЛ N 3652 ВТБ 24 (ПАО) Г. ВОРОНЕЖ","042007738","30101810100000000738","НДС",null,"Зерновоз 2 шт",null,"ИП ХОРОШИЛЬЦЕВ В.И., ИНН 694300834696, адрес: 172067, Россия Тверская обл.,Торжокский р-н, Село Грузины , р/сч 40702810124210000011 в ФИЛИАЛ N 3652 ВТБ 24 (ПАО) Г. ВОРОНЕЖ, БИК 042007738, к/сч 30101810100000000738"]
["Ясный Путь","ООО \"Ясный путь\"","7807094088","198259, г. Санкт-Петербург, ул. Пограничника Гарькавого, д. 34,кор1, лит.А, пом.2-Н.","40802810700000000832","ОАО КБ «Торжокуниверсалбанк» г.Торжок","042809953","30101810928090000953","нет НДС",null,"диспетчер","Тверь","ООО \"Ясный путь\", ИНН 7807094088, адрес: 198259, г. Санкт-Петербург, ул. Пограничника Гарькавого, д. 34,кор1, лит.А, пом.2-Н., р/сч 40802810700000000832 в ОАО КБ «Торжокуниверсалбанк» г.Торжок, БИК 042809953, к/сч 30101810928090000953"]

{"sheet":"Водители","index":1,"n_rows":158,"n_cols":6,"rows_kept":158,"cut":false,"hidden":false,"merged":[]}
[1,2,3,4,5,6]
["КраткоФИО","ФИО","Документ","Телефон","Примечание","Представление"]
["Аввакумов С.В.","Аввакумов  Сергей  Владимирович","паспорт 92 14 706501 выд. 15.05.2014г.     Отделом УФМС России по республике Татарстан в Чистопольском р-не","т. +7-921-335-11-07",null,{"$f":"CONCATENATE(B3,\" \",C3)","v":"Аввакумов  Сергей  Владимирович паспорт 92 14 706501 выд. 15.05.2014г.     Отделом УФМС России по республике Татарстан в Чистопольском р-не"}]
["Белокашин Е.Н.","Белокашин Евгений Николаевич \n","паспорт 4003 122745 выдан 13 отд милици Красногвардейского района в СПБ 04.10.2002","?",null,"Белокашин Евгений Николаевич \n паспорт 4003 122745 выдан 13 отд милици Красногвардейского района в СПБ 04.10.2002"]
["Большаков Ю.М.","Большаков Юрий Михайлович","паспорт 28 08 928204 выдан ТП УФМС России по Тверской области в Кувшиновском районе 18.05.2009","т. +7-910-848-36-88",null,"Большаков Юрий Михайлович паспорт 28 08 928204 выдан ТП УФМС России по Тверской области в Кувшиновском районе 18.05.2009"]
["Буташов А.А.","Буташов Ансария Асланович","паспорт 8206 161430 ОВД Кизилюртовского р-на респ.Дагестан, 01.08.2012","?",null,"Буташов Ансария Асланович паспорт 8206 161430 ОВД Кизилюртовского р-на респ.Дагестан, 01.08.2012"]
["Волков Ю.К.","Волков Юрий Константинович ","паспорт 4115 740646 выдан ТП №93 отдела УФМС России по СПб и Лен. Обл. во Всеволожском р-оне 05.03.201","?",null,"Волков Юрий Константинович  паспорт 4115 740646 выдан ТП №93 отдела УФМС России по СПб и Лен. Обл. во Всеволожском р-оне 05.03.201"]
["Емельянов С.В.","Емельянов Сергей Витальевич ","паспорт 49 03 495521 выдан Валдайским РОВД Новгородской обл. 17.04.2003","т. +7-965-081-64-11",null,"Емельянов Сергей Витальевич  паспорт 49 03 495521 выдан Валдайским РОВД Новгородской обл. 17.04.2003"]
["Ершов О.А.","Ершов Олег Анатольевич","паспорт  АО 046677    выд.  Пятихатским РОГУМВД Украины в Днепропетровской области 27.02.2012г.","т. +7-911-003-15-07",null,"Ершов Олег Анатольевич паспорт  АО 046677    выд.  Пятихатским РОГУМВД Украины в Днепропетровской области 27.02.2012г."]
["Жижин С.А.","Жижин Сергей Александрович","паспорт 3609 002186, выдан ОУФМС по Самарской области в Безенчукском районе, 18.10.2008г.","т. +7-927-904-25-22",null,"Жижин Сергей Александрович паспорт 3609 002186, выдан ОУФМС по Самарской области в Безенчукском районе, 18.10.2008г."]
["Заика П.К.","Заика Павел Константинович","паспорт 20 11 441443 выдан Отделом УФМС России по ВО в Лискинском районе  29.02.12","т. +7-960-135-65-59",null,"Заика Павел Константинович паспорт 20 11 441443 выдан Отделом УФМС России по ВО в Лискинском районе  29.02.12"]
["Кабешов А.В.","Кабешов Андрей Владимирович ","паспорт 40 09 977064 выдан тп №36 Красногвардейского района в СПБ 11.03.2010г ","?",null,"Кабешов Андрей Владимирович  паспорт 40 09 977064 выдан тп №36 Красногвардейского района в СПБ 11.03.2010г "]
["Каландаров Р.Р.","Каландаров Равиль Рузумбоевич","паспорт 40 08 615395 выдан ОВД Кумсангирского района дата выдачи 18.12.2015","?",null,"Каландаров Равиль Рузумбоевич паспорт 40 08 615395 выдан ОВД Кумсангирского района дата выдачи 18.12.2015"]
["Калинин А.Г.","Калинин Алексей Германович","з/паспорт № 75 3117277 ФСМ 39026 от 28.04.2016г.","т. +7-911-481-02-35",null,"Калинин Алексей Германович з/паспорт № 75 3117277 ФСМ 39026 от 28.04.2016г."]
["Ковалев В.П.","Ковалев Виктор Петрович","Паспорт 4003 № 582573 выдан 73 отделом милиции Фрунзенского района Санкт-Петербурга, 21.02.2003","т. +7-931-214-86-24",null,"Ковалев Виктор Петрович Паспорт 4003 № 582573 выдан 73 отделом милиции Фрунзенского района Санкт-Петербурга, 21.02.2003"]
["Ковалинский В.А.","Ковалинский Владимир Антонович","паспорт 4114 597338 ТП №93 УФМС СПБ г.Всеволожск, 05.05.2014","?",null,"Ковалинский Владимир Антонович паспорт 4114 597338 ТП №93 УФМС СПБ г.Всеволожск, 05.05.2014"]
["Коршунов А.П.","Коршунов Анатолий Петрович","паспорт 28 13 244932 выдан от-ем УФМС России по Тверской обл. в Торжокском р-не 19.04.2013","т.+7-961-808-89-35",null,"Коршунов Анатолий Петрович паспорт 28 13 244932 выдан от-ем УФМС России по Тверской обл. в Торжокском р-не 19.04.2013"]
["Костецкий А.П.","Костецкий Александр Петрович","паспорт 4008 790164 выдан ТП №33 отдела УФМС России по Санкт-Петербургу и Ленинградской обл. в Красногвардейском р-не гор. Санкт-Петербурга, 21.07.2009","?",null,"Костецкий Александр Петрович паспорт 4008 790164 выдан ТП №33 отдела УФМС России по Санкт-Петербургу и Ленинградской обл. в Красногвардейском р-не гор. Санкт-Петербурга, 21.07.2009"]
["Марков В.Г.","Марков Виктор Григорьевич","паспорт 5801 226392 ОВД Бежаницкого р-на Псковской обл. 10.01.2002","?",null,"Марков Виктор Григорьевич паспорт 5801 226392 ОВД Бежаницкого р-на Псковской обл. 10.01.2002"]
["Матросов А.В.","Матросов Александр Владимирович","паспорт 56 16 341985 выдан ОУФМС России по Пензенской области в гор. Пенза 16.04.2016","т. +7-905-366-81-22",null,"Матросов Александр Владимирович паспорт 56 16 341985 выдан ОУФМС России по Пензенской области в гор. Пенза 16.04.2016"]
["Миляев В.А.","Миляев Виктор Александрович ","паспорт 14 02  637013 выдан ОВД Красногвардейского р-на Белгородской обл.  22.03.2002г. ","т. +7-905-173-97-12",null,"Миляев Виктор Александрович  паспорт 14 02  637013 выдан ОВД Красногвардейского р-на Белгородской обл.  22.03.2002г. "]
["Никитенко Д.С.","Никитенко Дмитрий Сергеевич","паспорт 20 14 844869 выдан Отделением УФМС России по ВО в Острогожском районе 03.04.15","т. +7-905-051-77-90",null,"Никитенко Дмитрий Сергеевич паспорт 20 14 844869 выдан Отделением УФМС России по ВО в Острогожском районе 03.04.15"]
["Панов В.М.","Панов Владимир Михалович","паспорт 49 06 818859 выдан ТП УФМС России по Новгородской области в Пестовском районе, 10.07.2007","т. +7-911-611-15-68",null,"Панов Владимир Михалович паспорт 49 06 818859 выдан ТП УФМС России по Новгородской области в Пестовском районе, 10.07.2007"]
["Петров В.Н.","Петров Виктор Николаевич ","паспорт 58 02 404907 выдан УВД г.Пскова 08.08.02","т. +7-911-357-06-64",null,"Петров Виктор Николаевич  паспорт 58 02 404907 выдан УВД г.Пскова 08.08.02"]
["Снятков Э.Н.","Снятков Эдуард Николаевич ","паспорт 4912 014950 выдан отделением уфмс России по новгородской области в новгородском районе, 29.05.2012","т. +7-905-291-39-49",null,"Снятков Эдуард Николаевич  паспорт 4912 014950 выдан отделением уфмс России по новгородской области в новгородском районе, 29.05.2012"]
["Толмачев В.И.","Толмачев Вячеслав Иванович ","паспорт 14 02 805082 Красненским РОВД Белгородской обл. 08.08.2002г.","т. +7-915-571-49-77",null,"Толмачев Вячеслав Иванович  паспорт 14 02 805082 Красненским РОВД Белгородской обл. 08.08.2002г."]
["Третьяков И.А.","Третьяков Игорь Алексеевич"," паспорт 4007 096912 70 о/м Невского района Санкт-Петербурга, 28.12.2006","?",null,"Третьяков Игорь Алексеевич  паспорт 4007 096912 70 о/м Невского района Санкт-Петербурга, 28.12.2006"]
["Труш Д.М.","Труш Дмитрий Михайлович","паспорт 03 15 029936 Отделением УФМС России по Краснодарскому краю в Ленинградском р-не, 26/08/2014","т. +7-905-495-58-44",null,"Труш Дмитрий Михайлович паспорт 03 15 029936 Отделением УФМС России по Краснодарскому краю в Ленинградском р-не, 26/08/2014"]
["Шантар В.А.","Шантар Вадим Альбинович ","з/паспорт 51№6274560 выдан Г/К России ДАУГАВПИЛС от 02.11.15","т. +7-906-230-70-23",null,"Шантар Вадим Альбинович  з/паспорт 51№6274560 выдан Г/К России ДАУГАВПИЛС от 02.11.15"]
["Шарапов Д.Ф.","Шарапов Дамир Файзерахманович","паспорт 14 07  852435 выдан Отделением №3 ОУФМС РОССИИ по Белгородской области в г.Белгороде","т. +7-919-431-32-47",null,"Шарапов Дамир Файзерахманович паспорт 14 07  852435 выдан Отделением №3 ОУФМС РОССИИ по Белгородской области в г.Белгороде"]
["Школьник С.В.","Школьник Сергей Владимирович ","паспорт 4011 409735 выдан ТП №36 СПб Красногвардейского района, 09.11.2011","?",null,"Школьник Сергей Владимирович  паспорт 4011 409735 выдан ТП №36 СПб Красногвардейского района, 09.11.2011"]
["Юдашкин С.В.","Юдашкин Сергей Александрович","паспорт 4003 946908 выдан 70 отд Милиции Невского район по СПБ 05.06.2003","?",null,"Юдашкин Сергей Александрович паспорт 4003 946908 выдан 70 отд Милиции Невского район по СПБ 05.06.2003"]
["Ягодкин С.В.","Ягодкин Сергей Викторович","?????????????","т. +7-980-633-93-42",null,"Ягодкин Сергей Викторович ?????????????"]
[null,null,null,null,null," "]
[null,null,null,null,null," "]
[null,null,null,null,null," "]
[null,null,null,null,null," "]
[null,null,null,null,null," "]
[null,null,null,null,null," "]
[null,null,null,null,null," "]
[null,null,null,null,null," "]
[null,null,null,null,null," "]
[null,null,null,null,null," "]
[null,null,null,null,null," "]
[null,null,null,null,null," "]
[null,null,null,null,null," "]
[null,null,null,null,null," "]
[null,null,null,null,null," "]
[null,null,null,null,null," "]
[null,null,null,null,null," "]
[null,null,null,null,null," "]
[null,null,null,null,null," "]
[null,null,null,null,null," "]
[null,null,null,null,null," "]
[null,null,null,null,null," "]
[null,null,null,null,null," "]
[null,null,null,null,null," "]
[null,null,null,null,null," "]
[null,null,null,null,null," "]
[null,null,null,null,null," "]
[null,null,null,null,null," "]
[null,null,null,null,null," "]
[null,null,null,null,null," "]
[null,null,null,null,null," "]
[null,null,null,null,null," "]
[null,null,null,null,null," "]
[null,null,null,null,null,{"$f":"CONCATENATE(B67,\" \",C67)","v":" "}]
[null,null,null,null,null," "]
[null,null,null,null,null," "]
[null,null,null,null,null," "]
[null,null,null,null,null," "]
[null,null,null,null,null," "]
[null,null,null,null,null," "]
[null,null,null,null,null," "]
[null,null,null,null,null," "]
[null,null,null,null,null," "]
[null,null,null,null,null," "]
[null,null,null,null,null," "]
[null,null,null,null,null," "]
[null,null,null,null,null," "]
[null,null,null,null,null," "]
[null,null,null,null,null," "]
[null,null,null,null,null," "]
[null,null,null,null,null," "]
[null,null,null,null,null," "]
[null,null,null,null,null," "]
[null,null,null,null,null," "]
[null,null,null,null,null," "]
[null,null,null,null,null," "]
[null,null,null,null,null," "]
[null,null,null,null,null," "]
[null,null,null,null,null," "]
[null,null,null,null,null," "]
[null,null,null,null,null," "]
[null,null,null,null,null," "]
[null,null,null,null,null," "]
[null,null,null,null,null," "]
[null,null,null,null,null," "]
[null,null,null,null,null," "]
[null,null,null,null,null," "]
[null,null,null,null,null," "]
[null,null,null,null,null," "]
[null,null,null,null,null," "]
[null,null,null,null,null," "]
[null,null,null,null,null," "]
[null,null,null,null,null," "]
[null,null,null,null,null," "]
[null,null,null,null,null," "]
[null,null,null,null,null," "]
[null,null,null,null,null," "]
[null,null,null,null,null," "]
[null,null,null,null,null," "]
[null,null,null,null,null," "]
[null,null,null,null,null," "]
[null,null,null,null,null," "]
[null,null,null,null,null," "]
[null,null,null,null,null," "]
[null,null,null,null,null," "]
[null,null,null,null,null," "]
[null,null,null,null,null," "]
[null,null,null,null,null," "]
[null,null,null,null,null," "]
[null,null,null,null,null," "]
[null,null,null,null,null," "]
[null,null,null,null,null," "]
[null,null,null,null,null," "]
[null,null,null,null,null," "]
[null,null,null,null,null," "]
[null,null,null,null,null," "]
[null,null,null,null,null," "]
[null,null,null,null,null,{"$f":"CONCATENATE(B131,\" \",C131)","v":" "}]
[null,null,null,null,null," "]
[null,null,null,null,null," "]
[null,null,null,null,null," "]
[null,null,null,null,null," "]
[null,null,null,null,null," "]
[null,null,null,null,null," "]
[null,null,null,null,null," "]
[null,null,null,null,null," "]
[null,null,null,null,null," "]
[null,null,null,null,null," "]
[null,null,null,null,null," "]
[null,null,null,null,null," "]
[null,null,null,null,null," "]
[null,null,null,null,null," "]
[null,null,null,null,null," "]
[null,null,null,null,null," "]
[null,null,null,null,null," "]
[null,null,null,null,null," "]
[null,null,null,null,null," "]
[null,null,null,null,null," "]
[null,null,null,null,null," "]
[null,null,null,null,null," "]
[null,null,null,null,null," "]
[null,null,null,null,null," "]
[null,null,null,null,null," "]
[null,null,null,null,null," "]
[null,null,null,null,null," "]

{"sheet":"Машины","index":2,"n_rows":32,"n_cols":3,"rows_kept":32,"cut":false,"hidden":false,"merged":[]}
[1,2,3]
["Гос.Номер","Название","прицеп"]
["А930ОВ53","VOLVO","KRONE НВ4414 53"]
["В094УХ98","SCANIA","п/п ВА8267 78"]
["В291ХЕ178","VOLVO","KRONE ВМ8832 78"]
["В742РА178","VOLVO","KRONE ВА412678"]
["В744РА178","VOLVO","KRONE ВК279 178"]
["В745РА178","VOLVO","KRONE ВЕ058978"]
["В799ЕМ178","VOLVO","KRONE ВВ2775 78"]
["В844РВ98","МАЗ","ТОНАР АХ6113 78"]
["В875АО178 ","SCANIA ","п/п ВА4680 78"]
["Е402ВС777","DAF","п/п ВУ5377 77"]
["Е408ЕВ98","SCANIA","МАЗ АХ7271 78"]
["К332РЕ69","DAF","п/п АМ4084 69"]
["М054КУ58","MERCEDES-BENZ","п/п АЕ7669 58"]
["М059РХ93","КАМАЗ","п/п ЕС5878 23"]
["М218ОК69","DAF","п/п АК7667 69"]
["М725ВО750","DAF","KRONE ЕЕ8566 50"]
["Н158РВ178","IVECO","п/п ВА6211 78"]
["Н253МО777","IVECO","п/п ЕЕ1895 77"]
["Н691УС31","RENAULT KERAX  ","НЕФАЗ АН6019 31"]
["О152ВР31","RENAULT KERAX  ","НЕФАЗ АН5976 31"]
["Р229ВЕ39","MAN","KRONE АМ1016 39"]
["С134АК136","КАМАЗ","п/п АТ6416 36"]
["С359УС163","ФРЕЙТЛАЙНЕР","МАЗ АХ5170 63"]
["С546КР60","MAN","п/п ВУ9449 50"]
["С881ОМ53","VOLVO","КЕМПФ АМ2350 47"]
["Т269УР178 ","VOLVO","KRONE (юмба) ВМ8128 78"]
["Т544ХТ98","SCANIA","НАРКО АР9253 47"]
["Т702ХХ36","КАМАЗ","п/п АТ3199 36"]
["У514ОУ178","VOLVO","КОГЕЛЬ ВН8458 78"]
["У953ХУ47","SCANIA","п/п АР8732 47"]